bitfinex-derivatives/quotes_SOLF0:USTF0_20250808
["timestamp","ask_amount","ask_price","bid_price","bid_amount"]
[1754644254930,104.18,175.75,175.74,8.8389]
[1754644255129,14.6206753,175.76,175.74,6.36398744]
[1754644255434,14.6206753,175.76,175.75,8.8386]
[1754644257029,3.18,175.81,175.76,3.15]
[1754644257230,3.18,175.81,175.77,3.15]
[1754644257429,107.32,175.81,175.77,3.15]
[1754644257630,107.32,175.81,175.8,5.6869]
[1754644257928,107.32,175.81,175.8,8.8369]
[1754644258629,107.32,175.81,175.79,5.6872]
[1754644258833,3.18,175.8,175.79,8.8372]
[1754644261435,3.18,175.8,175.79,3.15]
[1754644261625,104.14,175.81,175.79,3.15]
[1754644261830,107.32,175.81,175.79,3.15]
[1754644262536,104.14,175.81,175.78,5.6873]
[1754644262733,3.18,175.8,175.78,5.6873]
[1754644263136,3.18,175.8,175.79,3.15]
[1754644264539,3.18,175.8,175.78,3.15]
[1754644265433,3.18,175.8,175.78,8.8375]
[1754644265632,3.18,175.79,175.78,5.6875]
[1754644266333,3.18,175.79,175.78,8.9075]
[1754644266930,104.14,175.81,175.79,5.6872]
[1754644267130,3.05,175.8,175.79,5.6872]
[1754644267335,3.05,175.8,175.76,3.21398744]
[1754644267638,3.05,175.8,175.79,3.22]
[1754644271330,3.05,175.8,175.79,8.9073]
[1754644271535,107.19,175.81,175.79,3.22]
[1754644272038,107.19,175.81,175.8,8.9069]
[1754644274337,3.05,175.83,175.82,3.22]
[1754644274536,3.05,175.83,175.81,8.9066]
[1754644275637,3.05,175.83,175.81,3.22]
[1754644276436,3.05,175.83,175.78,3.21398744]
[1754644276642,3.05,175.83,175.82,3.22]
[1754644276938,104.06,175.84,175.82,3.22]
[1754644277341,107.11,175.84,175.83,8.906]
[1754644277749,104.06,175.84,175.83,8.906]
[1754644278143,107.11,175.84,175.83,8.906]
[1754644280143,107.11,175.84,175.83,3.22]
[1754644280947,107.11,175.84,175.83,8.906]
[1754644281343,104.06,175.84,175.83,8.906]
[1754644282247,107.11,175.84,175.83,8.906]
[1754644282850,3.05,175.83,175.82,8.9062]
[1754644283149,104.06,175.84,175.81,3.21398744]
[1754644283449,3.05,175.83,175.82,5.6861]
[1754644283648,3.05,175.83,175.82,8.9061]
[1754644284149,107.11,175.84,175.83,8.906]
[1754644284449,3.05,175.84,175.83,8.906]
[1754644287049,3.05,175.97,175.83,8.89398744]
[1754644287249,3.05,175.94,175.69,3.22]
[1754644287554,3.21398744,175.95,175.89,5.6838]
[1754644287755,3.05,175.93,175.87,6.43398744]
[1754644288148,104.44,175.94,175.87,6.43398744]
[1754644288149,3.05,175.92,175.87,6.43398744]
[1754644288451,3.05,175.92,175.87,3.21398744]
[1754644288754,3.05,175.91,175.87,3.21398744]
[1754644288950,3.05,175.89,175.82,3.21398744]
[1754644289157,3.05,175.89,175.83,3.22]
[1754644289553,3.05,175.89,175.83,8.9059]
[1754644290054,3.05,175.89,175.84,8.9055]
[1754644290351,3.05,175.89,175.85,3.22]
[1754644290557,3.05,175.89,175.86,3.22]
[1754644291254,3.05,175.89,175.85,5.6851]
[1754644291454,3.05,175.89,175.85,8.9051]
[1754644292256,3.05,175.89,175.86,8.905]
[1754644293959,3.05,175.89,175.85,5.6852]
[1754644294160,3.05,175.89,175.85,8.9052]
[1754644294463,3.05,175.89,175.86,3.22]
[1754644294957,3.05,175.89,175.86,8.9048]
[1754644295353,3.05,175.89,175.86,3.22]
[1754644296356,3.05,175.89,175.82,3.21398744]
[1754644296655,3.24,175.93,175.89,3.23]
[1754644296862,104.44,175.92,175.89,3.23]
[1754644297155,104.44,175.92,175.91,8.9134]
[1754644297355,104.44,175.92,175.9,3.21398744]
[1754644297356,104.52,175.94,175.92,3.23]
[1754644297558,3.24,175.93,175.91,3.23]
[1754644298155,3.24,175.93,175.92,8.9131]
[1754644299463,3.24,175.93,175.92,3.23]
[1754644299662,3.24,175.93,175.88,6.44398744]
[1754644299863,3.24,175.93,175.89,3.23]
[1754644300060,3.24,175.93,175.89,8.9139]
[1754644300267,3.24,175.93,175.89,3.23]
[1754644300560,3.24,175.94,175.9,3.21398744]
[1754644300762,107.76,175.96,175.93,3.23]
[1754644301267,107.76,175.96,175.95,5.6821]
[1754644301465,107.76,175.96,175.95,8.9121]
[1754644302466,3.21398744,176.01,175.96,5.6816]
[1754644302660,3.24,175.98,175.97,3.23]
[1754644303165,3.24,175.98,175.97,8.9114]
[1754644303363,104.54,175.99,175.97,3.23]
[1754644303562,3.24,175.98,175.97,3.23]
[1754644303762,3.24,175.98,175.97,5.6812]
[1754644304363,3.24,175.98,175.97,8.9112]
[1754644304565,3.24,175.97,175.96,3.23]
[1754644304765,104.54,175.99,175.96,6.44398744]
[1754644305066,107.78,175.99,175.97,8.9112]
[1754644305362,104.54,175.99,175.98,3.23]
[1754644305965,107.78,175.99,175.98,3.23]
[1754644306565,104.54,175.99,175.98,3.23]
[1754644306765,107.78,175.99,175.98,3.23]
[1754644307369,3.24,176.03,175.98,5.6811]
[1754644307665,3.24,176.02,175.99,3.23]
[1754644308167,104.5,176.03,176.01,3.23]
[1754644308471,3.24,176.04,176.03,3.23]
[1754644308671,3.24,176.05,176.04,3.23]
[1754644308873,3.24,176.05,176.03,3.23]
[1754644309170,104.58,176.06,176.03,3.23]
[1754644309363,3.24,176.04,176.03,3.23]
[1754644309764,3.24,176.02,176.01,3.23]
[1754644310070,3.24,176.02,175.99,3.23]
[1754644310272,3.24,176.02,175.97,3.23]
[1754644310464,104.58,176.02,175.98,3.23]
[1754644310665,3.24,176.01,175.98,3.23]
[1754644311565,104.58,176.02,175.98,8.9111]
[1754644311871,3.24,176.0,175.99,3.23]
[1754644312272,3.24,176.01,176.0,3.23]
[1754644312474,104.58,176.02,176.0,8.9103]
[1754644312773,104.58,176.02,176.01,3.23]
[1754644313173,3.24,176.04,176.03,3.23]
[1754644313374,3.24,176.05,176.04,3.23]
[1754644313876,107.84,176.06,176.05,3.23]
[1754644314266,104.6,176.09,176.05,3.23]
[1754644314574,3.24,176.08,176.05,3.23]
[1754644315875,3.24,176.07,176.03,3.23]
[1754644316468,3.24,176.07,176.02,8.89358744]
[1754644316778,3.24,176.07,176.04,3.23]
[1754644317377,3.24,176.06,176.04,3.23]
[1754644317580,104.6,176.09,176.04,3.23]
[1754644317771,3.24,176.05,176.04,8.9092]
[1754644318275,104.6,176.09,176.05,3.23]
[1754644318481,3.21398744,176.08,176.0,3.23]
[1754644318668,3.24,176.07,176.0,3.23]
[1754644319273,3.24,176.07,176.0,8.9103]
[1754644320180,3.24,176.07,176.0,3.23]
[1754644321078,3.24,176.07,176.0,8.9104]
[1754644321571,3.21398744,176.08,176.0,5.6804]
[1754644321879,3.24,176.06,176.01,3.23]
[1754644322184,3.24,176.06,176.0,5.6803]
[1754644322382,3.24,176.06,176.02,3.23]
[1754644322575,3.24,176.06,176.0,5.6803]
[1754644322771,3.24,176.06,176.01,3.23]
[1754644322974,3.24,176.06,175.99,3.21398744]
[1754644323176,3.21398744,176.07,175.99,3.21398744]
[1754644323177,3.24,176.05,175.99,3.21398744]
[1754644323382,3.24,176.05,176.02,3.23]
[1754644323770,3.24,176.06,176.02,3.23]
[1754644324183,3.24,176.06,176.03,3.23]
[1754644324476,3.24,176.06,176.01,5.68]
[1754644324681,3.24,176.06,176.02,3.23]
[1754644328181,3.24,176.06,176.03,3.26]
[1754644328887,3.24,176.06,176.01,3.26]
[1754644329081,3.24,176.06,175.99,8.89468744]
[1754644329384,3.24,176.06,176.03,3.26]
[1754644330386,3.24,176.06,176.0,3.26]
[1754644334484,3.24,176.06,176.01,5.6801]
[1754644334685,3.24,176.06,176.02,3.26]
[1754644335286,3.24,176.06,176.03,3.26]
[1754644339687,3.13,176.04,176.01,3.26]
[1754644339885,3.13,176.04,175.97,3.21398744]
[1754644339886,6.34398744,176.04,175.98,3.26]
[1754644340081,3.13,176.03,175.98,3.26]
[1754644342483,3.13,176.03,175.99,3.26]
[1754644342989,3.13,176.03,176.0,3.26]
[1754644344288,3.13,176.03,175.96,5.6817]
[1754644344585,3.13,176.03,176.01,3.26]
[1754644344785,3.13,176.03,175.99,3.26]
[1754644345088,3.13,176.03,176.0,3.26]
[1754644345487,3.13,176.02,176.0,3.26]
[1754644345686,3.21398744,176.04,176.0,3.26]
[1754644345982,3.13,176.01,176.0,3.26]
[1754644349479,3.13,176.01,175.94,8.89638744]
[1754644349684,3.13,176.01,175.95,3.26]
[1754644350486,3.13,176.01,175.96,3.26]
[1754644350785,3.13,176.01,175.94,3.21398744]
[1754644350994,3.13,175.99,175.95,3.26]
[1754644351183,3.13,175.98,175.95,3.26]
[1754644352290,3.21398744,176.0,175.95,3.26]
[1754644352492,3.13,175.97,175.96,3.26]
[1754644354180,3.13,175.97,175.9,3.21398744]
[1754644354388,3.13,175.97,175.91,3.26]
[1754644360297,3.24,175.95,175.92,3.16]
[1754644360589,3.24,175.95,175.9,3.16]
[1754644360590,3.21398744,175.94,175.9,3.16]
[1754644360797,3.24,175.93,175.9,3.16]
[1754644360991,3.24,175.93,175.91,3.16]
[1754644362794,3.24,175.93,175.89,3.16]
[1754644362995,3.24,175.91,175.9,3.16]
[1754644365098,3.24,175.91,175.88,3.16]
[1754644366691,8.89788744,175.9,175.88,3.16]
[1754644366892,3.24,175.89,175.88,3.16]
[1754644370898,15.77860845,176.03,175.88,3.16]
[1754644371097,15.77860845,176.03,175.89,3.16]
[1754644371098,3.24,175.95,175.89,3.16]
[1754644371700,3.24,175.94,175.89,3.16]
[1754644372100,3.24,175.93,175.89,3.16]
[1754644372294,5.6821,175.95,175.79,617.48]
[1754644372295,3.21398744,175.9,175.85,3.16]
[1754644372601,3.24,175.89,175.85,3.16]
[1754644373193,3.24,175.88,175.85,3.16]
[1754644375803,3.24,175.88,175.86,3.16]
[1754644376105,8.89738744,175.92,175.86,3.16]
[1754644376301,3.24,175.93,175.88,3.16]
[1754644376698,0.04109933,175.91,175.88,3.16]
[1754644376901,0.04109933,175.91,175.9,3.16]
[1754644379106,3.28109933,175.91,175.9,3.16]
[1754644384815,3.28109933,175.91,175.89,3.19605258]
[1754644385010,3.28109933,175.91,175.89,0.03605258]
[1754644386613,3.28109933,175.91,175.89,3.17605258]
[1754644386913,0.04109933,175.91,175.9,3.14]
[1754644387908,3.35109933,175.91,175.9,3.14]
[1754644388109,3.31,175.9,175.89,0.03605258]
[1754644390511,8.9937,175.9,175.89,0.03605258]
[1754644392918,5.6843,175.89,175.85,3.14]
[1754644393221,3.31,175.88,175.83,5.6859]
[1754644393416,3.31,175.88,175.84,3.14]
[1754644393812,8.9944,175.88,175.84,3.14]
[1754644394023,3.21398744,175.89,175.84,3.14]
[1754644394221,3.31,175.87,175.84,3.14]
[1754644394921,3.34920711,175.88,175.86,3.14]
[1754644397231,3.31,175.87,175.86,3.14]
[1754644397933,3.31,175.87,175.8,3.21398744]
[1754644398132,3.31,175.87,175.81,3.14]
[1754644398133,6.52398744,175.87,175.81,3.14]
[1754644398325,5.6855,175.85,175.81,3.14]
[1754644398629,3.31,175.84,175.8,3.14]
[1754644398831,3.31,175.84,175.8,8.8269]
[1754644399030,3.31,175.84,175.81,3.14]
[1754644399226,3.31,175.83,175.79,3.14]
[1754644399525,5.6857,175.84,175.79,5.6871]
[1754644399725,3.31,175.82,175.8,3.14]
[1754644399934,5.6857,175.84,175.79,5.6871]
[1754644400125,5.6857,175.84,175.8,3.14]
[1754644400325,3.31,175.86,175.82,3.21398744]
[1754644400622,0.03595522,175.84,175.83,3.14]
[1754644402034,3.34595522,175.84,175.81,3.14]
[1754644402233,3.34595522,175.84,175.82,3.14]
[1754644402533,3.31,175.83,175.82,3.14]
[1754644403227,0.03595522,175.84,175.82,3.14]
[1754644403437,3.34595522,175.84,175.82,3.14]
[1754644403733,0.03595522,175.84,175.82,8.8263]
[1754644403934,0.03595522,175.84,175.83,3.14]
[1754644404428,3.34595522,175.84,175.83,3.14]
[1754644405433,9.03155522,175.84,175.83,3.14]
[1754644405628,3.34595522,175.84,175.83,3.14]
[1754644410644,0.03595522,175.84,175.83,3.14]
[1754644411342,0.03595522,175.84,175.83,8.826]
[1754644412543,0.03595522,175.84,175.83,3.14]
[1754644414148,0.03595522,175.84,175.83,8.826]
[1754644414533,0.03595522,175.84,175.83,3.14]
[1754644415240,0.03595522,175.84,175.83,8.826]
[1754644415539,3.31,175.9,175.84,3.14]
[1754644415739,8.9939,175.9,175.88,3.14]
[1754644417736,104.1,175.96,175.88,3.14]
[1754644417945,2.99,175.92,175.88,3.14]
[1754644418243,2.99,175.92,175.87,3.11]
[1754644418444,2.99,175.92,175.86,3.11]
[1754644419047,2.99,175.92,175.86,8.795]
[1754644419246,2.99,175.92,175.87,3.11]
[1754644420248,2.99,175.92,175.86,5.685]
[1754644420446,2.99,175.92,175.88,3.11]
[1754644421948,2.99,175.92,175.86,3.11]
[1754644427345,2.99,175.92,175.86,8.7949]
[1754644427546,2.99,175.92,175.87,3.11]
[1754644427740,2.99,175.92,175.88,3.11]
[1754644427952,3.21398744,175.91,175.85,3.11]
[1754644428144,2.99,175.9,175.85,3.11]
[1754644428744,2.99,175.88,175.83,3.11]
[1754644429047,2.99,175.88,175.84,3.11]
[1754644429456,2.99,175.88,175.82,8.7961]
[1754644429752,3.21398744,175.87,175.83,3.11]
[1754644429953,2.99,175.86,175.83,3.11]
[1754644430452,3.21398744,175.85,175.78,3.21398744]
[1754644430652,3.21398744,175.83,175.79,3.11]
[1754644430852,2.99,175.82,175.79,3.11]
[1754644431154,2.99,175.82,175.8,3.11]
[1754644433158,2.99,175.84,175.76,3.21398744]
[1754644433654,2.99,175.84,175.77,3.11]
[1754644434056,2.99,175.83,175.77,3.11]
[1754644434251,2.99,175.83,175.79,5.687]
[1754644434457,2.99,175.82,175.8,3.11]
[1754644435655,2.99,175.82,175.81,3.11]
[1754644436052,2.99,175.82,175.79,3.11]
[1754644436253,2.99,175.82,175.8,3.11]
[1754644436448,5.6865,175.82,175.8,3.11]
[1754644436651,2.99,175.81,175.8,3.11]
[1754644437761,2.99,175.81,175.79,3.11]
[1754644438352,2.99,175.81,175.76,3.21398744]
[1754644438758,2.99,175.81,175.78,5.6874]
[1754644438958,2.99,175.8,175.79,3.11]
[1754644439760,5.6863,175.82,175.79,3.11]
[1754644439965,2.99,175.81,175.79,3.11]
[1754644441653,3.21398744,175.95,175.78,3.21398744]
[1754644441959,2.99,175.86,175.81,3.11]
[1754644442264,5.6855,175.85,175.81,8.7966]
[1754644442558,2.99,175.86,175.82,3.11]
[1754644443063,2.99,175.86,175.81,3.11]
[1754644443562,2.99,175.84,175.81,3.11]
[1754644443756,2.99,175.83,175.81,3.11]
[1754644446056,5.6856,175.85,175.82,3.25]
[1754644446461,5.6856,175.85,175.82,5.6862]
[1754644446662,5.6858,175.84,175.81,3.25]
[1754644447064,8.9158,175.84,175.82,3.25]
[1754644447564,5.686,175.83,175.82,3.25]
[1754644448658,8.9157,175.84,175.82,3.25]
[1754644450067,5.686,175.83,175.82,3.25]
[1754644451167,8.916,175.83,175.82,3.25]
[1754644451361,3.21398744,175.87,175.79,3.21398744]
[1754644451558,3.23,175.84,175.76,3.21398744]
[1754644451758,3.23,175.82,175.76,3.21398744]
[1754644451960,5.6876,175.78,175.77,3.25]
[1754644452263,8.9176,175.78,175.77,3.25]
[1754644452865,5.6876,175.78,175.77,3.25]
[1754644453060,3.23,175.8,175.77,3.25]
[1754644453061,5.6873,175.79,175.77,3.25]
[1754644454767,3.23,175.85,175.79,3.25]
[1754644454960,3.23,175.87,175.81,3.25]
[1754644455267,3.21398744,175.88,175.8,8.90068744]
[1754644455460,3.23,175.82,175.8,8.90068744]
[1754644455863,3.23,175.82,175.81,3.25]
[1754644456864,3.21398744,175.86,175.8,3.21398744]
[1754644457070,3.23,175.85,175.8,3.25]
[1754644457769,5.6866,175.81,175.8,3.25]
[1754644457968,8.9166,175.81,175.8,3.25]
[1754644458763,5.6871,175.8,175.78,3.21398744]
[1754644458963,3.23,175.8,175.77,3.25]
[1754644459359,3.23,175.8,175.76,3.25]
[1754644459667,3.23,175.78,175.77,3.25]
[1754644460069,5.6876,175.78,175.75,3.25]
[1754644460270,3.23,175.77,175.75,3.25]
[1754644461070,5.6874,175.79,175.76,3.25]
[1754644461268,5.6874,175.79,175.77,3.25]
[1754644461662,8.9174,175.79,175.77,3.25]
[1754644462773,8.9174,175.79,175.76,3.21398744]
[1754644462975,8.9174,175.79,175.77,3.25]
[1754644463272,8.9174,175.79,175.78,3.25]
[1754644464574,8.9179,175.77,175.76,3.25]
[1754644466475,3.23,175.77,175.76,3.25]
[1754644466770,8.9177,175.78,175.76,3.25]
[1754644466975,3.23,175.78,175.76,3.25]
[1754644468276,8.9176,175.78,175.76,8.938]
[1754644468478,3.23,175.78,175.77,3.25]
[1754644469974,3.23,175.82,175.77,3.25]
[1754644470679,5.6871,175.8,175.78,3.25]
[1754644470880,8.9171,175.8,175.78,3.25]
[1754644471178,8.9171,175.8,175.78,8.9375]
[1754644471379,3.23,175.79,175.78,3.25]
[1754644471581,8.9173,175.79,175.78,3.25]
[1754644473681,5.6877,175.78,175.76,8.90198744]
[1754644473882,3.23,175.77,175.76,8.90198744]
[1754644474085,3.23,175.77,175.74,3.21398744]
[1754644474385,3.23,175.76,175.75,3.25]
[1754644474885,8.9182,175.76,175.75,3.25]
[1754644476277,3.12,175.78,175.75,3.25]
[1754644476577,3.12,175.79,175.77,3.17]
[1754644476978,3.12,175.78,175.77,3.17]
[1754644477177,3.12,175.78,175.74,3.17]
[1754644477374,3.12,175.77,175.75,8.90238744]
[1754644477579,3.12,175.77,175.76,3.17]
[1754644478387,8.8079,175.77,175.76,3.17]
[1754644479990,8.8082,175.76,175.75,6.38398744]
[1754644480282,8.8082,175.76,175.75,3.17]
[1754644480580,3.12,175.74,175.73,3.21398744]
[1754644480986,3.12,175.73,175.72,3.17]
[1754644482587,5.6892,175.74,175.71,8.90378744]
[1754644482888,3.12,175.73,175.71,12.07378744]
[1754644483081,3.12,175.73,175.71,6.38398744]
[1754644483281,3.21398744,175.79,175.71,6.38398744]
[1754644483484,3.12,175.72,175.71,6.38398744]
[1754644484087,3.12,175.73,175.71,8.90378744]
[1754644484283,3.12,175.79,175.72,3.17]
[1754644484488,3.12,175.81,175.78,6.38398744]
[1754644484688,3.12,175.84,175.78,6.38398744]
[1754644484990,3.12,175.79,175.76,6.38398744]
[1754644485178,3.12,175.79,175.76,3.21398744]
[1754644485383,3.12,175.79,175.77,3.17]
[1754644485384,5.6874,175.79,175.77,3.17]
[1754644485583,8.8074,175.79,175.77,3.17]
[1754644485783,3.21398744,175.83,175.71,339.1]
[1754644485784,3.12,175.81,175.78,3.21398744]
[1754644485993,5.687,175.8,175.79,3.17]
[1754644486486,8.807,175.8,175.79,3.17]
[1754644486691,8.8073,175.79,175.78,3.21398744]
[1754644486991,3.12,175.78,175.77,3.17]
[1754644487194,3.12,175.79,175.77,5.6879]
[1754644487493,3.12,175.84,175.76,6.38398744]
[1754644487885,3.12,175.84,175.76,12.07218744]
[1754644488795,5.6872,175.8,175.76,12.07218744]
[1754644488985,5.6872,175.8,175.77,5.6879]
[1754644489190,3.12,175.79,175.77,5.6879]
[1754644489392,5.6872,175.8,175.78,3.21398744]
[1754644489587,8.8067,175.81,175.8,3.17]
[1754644490593,5.6872,175.8,175.78,6.38398744]
[1754644490888,3.12,175.79,175.78,6.38398744]
[1754644491396,5.6873,175.79,175.78,3.21398744]
[1754644491598,8.8073,175.79,175.78,3.21398744]
[1754644491897,3.12,175.79,175.76,8.8581]
[1754644492098,3.12,175.79,175.77,3.21398744]
[1754644492298,3.12,175.79,175.77,6.38398744]
[1754644493202,5.6876,175.78,175.77,6.38398744]
[1754644493394,8.8076,175.78,175.77,6.38398744]
[1754644494001,8.8076,175.78,175.77,3.21398744]
[1754644494203,8.8076,175.78,175.77,6.38398744]
[1754644494699,5.6882,175.76,175.75,6.38398744]
[1754644494902,8.8082,175.76,175.75,6.38398744]
[1754644495105,8.8082,175.76,175.75,3.17]
[1754644495499,5.6886,175.75,175.74,3.21398744]
[1754644495804,3.12,175.78,175.72,6.38398744]
[1754644496505,3.12,175.78,175.72,3.17]
[1754644496999,5.6887,175.75,175.72,3.17]
[1754644497200,3.12,175.74,175.73,3.17]
[1754644498103,5.6888,175.75,175.73,3.17]
[1754644498302,3.12,175.77,175.74,3.21398744]
[1754644498502,3.12,175.77,175.75,3.17]
[1754644498699,3.12,175.77,175.74,8.90258744]
[1754644498906,3.21398744,175.82,175.76,3.17]
[1754644499605,3.21398744,175.8,175.73,3.17]
[1754644499802,3.12,175.79,175.73,3.17]
[1754644499995,3.12,175.77,175.71,6.38398744]
[1754644500405,3.12,175.77,175.71,3.17]
[1754644501408,5.6892,175.73,175.71,3.17]
[1754644501708,3.12,175.72,175.71,3.17]
[1754644502006,8.809,175.74,175.71,3.17]
[1754644502905,8.809,175.74,175.71,8.8599]
[1754644503205,3.12,175.74,175.73,3.17]
[1754644503807,8.8089,175.74,175.73,3.17]
[1754644509311,5.6893,175.73,175.71,6.47398744]
[1754644509513,8.8693,175.73,175.72,3.26]
[1754644512811,5.6895,175.72,175.7,5.69]
[1754644513011,8.8695,175.72,175.71,3.26]
[1754644514021,3.18,175.72,175.71,3.26]
[1754644514721,8.8695,175.72,175.71,3.26]
[1754644514915,3.21398744,175.78,175.7,3.26]
[1754644515220,3.18,175.71,175.7,3.26]
[1754644515418,3.18,175.7,175.69,6.47398744]
[1754644515814,3.18,175.68,175.67,3.26]
[1754644517620,8.8707,175.69,175.67,5.6911]
[1754644517827,8.8707,175.69,175.68,3.26]
[1754644519127,3.18,175.69,175.68,3.26]
[1754644520028,3.18,175.68,175.67,3.26]
[1754644520524,3.18,175.68,175.67,8.9511]
[1754644522320,3.18,175.73,175.7,3.26]
[1754644522525,3.18,175.75,175.68,104.1]
[1754644522824,3.18,175.75,175.74,6.47398744]
[1754644523419,3.18,175.75,175.74,12.16288744]
[1754644523722,19.82228891,175.86,175.74,12.16288744]
[1754644523723,3.18,175.8,175.75,3.26]
[1754644524025,3.18,175.79,175.78,6.47398744]
[1754644524722,8.8673,175.79,175.76,8.90208744]
[1754644524920,3.18,175.78,175.76,3.21398744]
[1754644525226,5.6885,175.76,175.74,3.21398744]
[1754644525421,3.18,175.75,175.74,6.47398744]
[1754644525626,3.18,175.76,175.75,3.26]
[1754644526522,8.8683,175.76,175.74,5.6887]
[1754644526722,3.18,175.75,175.74,3.21398744]
[1754644527319,3.18,175.75,175.74,12.16288744]
[1754644528421,3.21398744,175.84,175.76,3.26]
[1754644528733,3.18,175.78,175.76,6.47398744]
[1754644528933,3.18,175.77,175.76,6.47398744]
[1754644529728,3.18,175.83,175.77,3.26]
[1754644529927,3.18,175.83,175.82,3.26]
[1754644530130,3.18,175.85,175.81,8.90038744]
[1754644530328,3.18,175.84,175.83,3.21398744]
[1754644531132,3.18,175.84,175.83,6.47398744]
[1754644531333,8.8656,175.84,175.83,6.47398744]
[1754644532628,3.18,175.85,175.81,3.21398744]
[1754644532834,16.60830147,175.86,175.81,3.21398744]
[1754644533031,3.18,175.82,175.81,6.47398744]
[1754644533728,8.8663,175.82,175.81,6.47398744]
[1754644533926,3.18,175.81,175.8,6.47398744]
[1754644534325,3.18,175.81,175.8,3.21398744]
[1754644534933,8.8666,175.81,175.8,3.21398744]
[1754644536037,3.08,175.85,175.81,3.13]
[1754644536239,3.08,175.84,175.83,3.13]
[1754644536537,8.7656,175.84,175.83,3.13]
[1754644537836,3.08,175.84,175.82,3.21398744]
[1754644538035,3.08,175.83,175.8,6.34398744]
[1754644538434,3.08,175.81,175.8,6.34398744]
[1754644542835,3.08,175.81,175.8,12.03088744]
[1754644553147,3.08,175.81,175.8,6.34398744]
[1754644554046,16.60830147,175.86,175.77,235.0]
[1754644554343,5.6861,175.83,175.8,8.90088744]
[1754644554838,5.6858,175.84,175.8,8.90088744]
[1754644555548,5.686,175.83,175.8,8.90088744]
[1754644556954,5.6858,175.84,175.81,5.6866]
[1754644557254,5.6858,175.84,175.8,3.21398744]
[1754644557454,16.60830147,175.86,175.8,3.21398744]
[1754644557854,16.60830147,175.86,175.8,8.90068744]
[1754644558258,19.82228891,175.86,175.78,3.21398744]
[1754644558451,3.21398744,175.84,175.75,3.21398744]
[1754644558650,3.21398744,175.82,175.66,246.3828]
[1754644558852,3.21398744,175.8,175.73,3.21398744]
[1754644559154,3.21398744,175.8,175.73,8.90298744]
[1754644560155,5.6881,175.77,175.73,8.90298744]
[1754644560554,3.21398744,175.8,175.73,8.90298744]
[1754644561060,5.6882,175.77,175.73,8.90298744]
[1754644561255,3.21398744,175.8,175.71,3.21398744]
[1754644561459,3.21398744,175.78,175.71,3.21398744]
[1754644561657,5.6887,175.75,175.71,8.90368744]
[1754644561857,3.21398744,175.78,175.71,3.21398744]
[1754644562260,5.6883,175.76,175.73,5.6892]
[1754644565160,5.688,175.77,175.73,5.6892]